[Event "Titled Tuesday Blitz July 11 Late 2023"]
[White "Sala, Giulia"]
[Black "Fiorito, Joaquin"]
[WhiteFideId "2840451"]
[BlackFideId "180173"]
[WhiteElo "2288"]
[BlackElo "2617"]
[Result "0-1"]
[Round "10"]
[TimeControl "180+2"]
[Date "2023.07.11"]
[WhiteClock "0:01:15"]
[BlackClock "0:00:35"]
[Board "38"]

1. d4 {[%clk 0:03:00]}  Nf6 {[%clk 0:02:59]} 2. Bf4 {[%clk 0:03:01]}  d5 {[%clk 0:03:00]} 3. e3 {[%clk 0:03:01]}  c5 {[%clk 0:02:59]} 4. dxc5 {[%clk 0:03:01]}  e6 {[%clk 0:02:59]} 5. b4 {[%clk 0:03:00]}  a5 {[%clk 0:02:57]} 6. c3 {[%clk 0:03:00]}  Bd7 {[%clk 0:02:56]} 7. Nd2 {[%clk 0:02:59]}  b6 {[%clk 0:02:55]} 8. cxb6 {[%clk 0:02:57]}  axb4 {[%clk 0:02:53]} 9. cxb4 {[%clk 0:02:56]}  Bxb4 {[%clk 0:02:52]} 10. Bc7 {[%clk 0:02:56]}  Qe7 {[%clk 0:02:51]} 11. b7 {[%clk 0:02:56]}  Ra3 {[%clk 0:02:52]} 12. Bxb8 {[%clk 0:02:55]}  O-O {[%clk 0:02:48]} 13. Be5 {[%clk 0:02:51]}  Ba4 {[%clk 0:02:47]} 14. Qb1 {[%clk 0:02:33]}  Ne4 {[%clk 0:02:34]} 15. Nf3 {[%clk 0:02:33]}  Qc5 {[%clk 0:02:18]} 16. Bd3 {[%clk 0:02:08]}  Nxd2 {[%clk 0:01:22]} 17. Nxd2 {[%clk 0:02:09]}  d4 {[%clk 0:01:11]} 18. exd4 {[%clk 0:01:49]}  Qc3 {[%clk 0:00:45]} 19. Qc1 {[%clk 0:01:37]}  Qxd3 {[%clk 0:00:40]} 20. Rb1 {[%clk 0:01:22]}  Bxd2+ {[%clk 0:00:38]} 21. Qxd2 {[%clk 0:01:18]}  Qxb1+ {[%clk 0:00:38]} 22. Ke2 {[%clk 0:01:18]}  Bb5+ {[%clk 0:00:35]} 23. Qd3 {[%clk 0:01:15]}  Bxd3+ {[%clk 0:00:35]} 0-1


[Site "https://www.chess.com"]

[Event "Titled Tuesday Blitz July 11 Late 2023"]
[White "Tanenbaum, Zachary"]
[Black "Chor, Kevin"]
[WhiteFideId "2060850"]
[BlackFideId "2090740"]
[WhiteElo "2737"]
[BlackElo "2540"]
[Result "0-1"]
[Round "10"]
[TimeControl "180+2"]
[Date "2023.07.11"]
[WhiteClock "0:00:02"]
[BlackClock "0:00:04"]
[Board "41"]

1. e4 {[%clk 0:03:00]}  c5 {[%clk 0:02:11]} 2. Nf3 {[%clk 0:03:00]}  Nc6 {[%clk 0:02:11]} 3. Nc3 {[%clk 0:02:59]}  g6 {[%clk 0:02:07]} 4. d4 {[%clk 0:02:57]}  cxd4 {[%clk 0:02:08]} 5. Nxd4 {[%clk 0:02:57]}  Bg7 {[%clk 0:02:08]} 6. Be3 {[%clk 0:02:57]}  Nf6 {[%clk 0:02:09]} 7. Bc4 {[%clk 0:02:55]}  O-O {[%clk 0:02:00]} 8. Bb3 {[%clk 0:02:55]}  d5 {[%clk 0:02:00]} 9. exd5 {[%clk 0:02:50]}  Na5 {[%clk 0:02:00]} 10. h3 {[%clk 0:02:41]}  Nxb3 {[%clk 0:01:57]} 11. Nxb3 {[%clk 0:02:41]}  b6 {[%clk 0:01:54]} 12. Qd2 {[%clk 0:02:36]}  Bb7 {[%clk 0:01:53]} 13. O-O-O {[%clk 0:02:21]}  Qc8 {[%clk 0:01:40]} 14. Bh6 {[%clk 0:02:14]}  Rd8 {[%clk 0:01:22]} 15. Rhe1 {[%clk 0:02:06]}  Nxd5 {[%clk 0:01:18]} 16. Bxg7 {[%clk 0:02:02]}  Kxg7 {[%clk 0:01:15]} 17. Qd4+ {[%clk 0:00:55]}  Kg8 {[%clk 0:01:14]} 18. Ne4 {[%clk 0:00:48]}  Nf4 {[%clk 0:01:07]} 19. Nf6+ {[%clk 0:00:47]}  exf6 {[%clk 0:01:08]} 20. Qxf4 {[%clk 0:00:47]}  Rxd1+ {[%clk 0:01:00]} 21. Rxd1 {[%clk 0:00:47]}  f5 {[%clk 0:00:54]} 22. h4 {[%clk 0:00:34]}  Bxg2 {[%clk 0:00:51]} 23. f3 {[%clk 0:00:30]}  Qb7 {[%clk 0:00:35]} 24. Nd4 {[%clk 0:00:29]}  Rd8 {[%clk 0:00:34]} 25. Qg3 {[%clk 0:00:25]}  Qa6 {[%clk 0:00:26]} 26. Qxg2 {[%clk 0:00:15]}  Qxa2 {[%clk 0:00:26]} 27. c3 {[%clk 0:00:08]}  a5 {[%clk 0:00:23]} 28. Qc2 {[%clk 0:00:06]}  a4 {[%clk 0:00:20]} 29. Nb5 {[%clk 0:00:04]}  Rc8 {[%clk 0:00:18]} 30. Qb1 {[%clk 0:00:04]}  Qc4 {[%clk 0:00:14]} 31. Nd4 {[%clk 0:00:04]}  a3 {[%clk 0:00:13]} 32. Qd3 {[%clk 0:00:04]}  Qa2 {[%clk 0:00:09]} 33. Qb1 {[%clk 0:00:03]}  Qc4 {[%clk 0:00:08]} 34. Kd2 {[%clk 0:00:03]}  a2 {[%clk 0:00:05]} 35. Qd3 {[%clk 0:00:03]}  Qa4 {[%clk 0:00:05]} 36. Ra1 {[%clk 0:00:03]}  Rd8 {[%clk 0:00:06]} 37. Qc2 {[%clk 0:00:03]}  Qc4 {[%clk 0:00:05]} 38. b3 {[%clk 0:00:02]}  Rxd4+ {[%clk 0:00:05]} 39. Ke3 {[%clk 0:00:02]}  Qc5 {[%clk 0:00:04]} 40. Ke2 {[%clk 0:00:00]}  Rxh4 {[%clk 0:00:04]} 41. Kf1 {[%clk 0:00:01]}  Rh1+ {[%clk 0:00:03]} 42. Kg2 {[%clk 0:00:02]}  Rxa1 {[%clk 0:00:03]} 43. Qd2 {[%clk 0:00:03]}  Rg1+ {[%clk 0:00:03]} 44. Kh2 {[%clk 0:00:02]}  a1=Q {[%clk 0:00:03]} 45. b4 {[%clk 0:00:02]}  Qe5+ {[%clk 0:00:02]} 46. f4 {[%clk 0:00:03]}  Qee1 {[%clk 0:00:02]} 47. Qd8+ {[%clk 0:00:02]}  Kg7 {[%clk 0:00:03]} 48. Qd4+ {[%clk 0:00:03]}  Kh6 {[%clk 0:00:03]} 49. Qxg1 {[%clk 0:00:02]}  Qxg1+ {[%clk 0:00:03]} 50. Kh3 {[%clk 0:00:02]}  Qh1+ {[%clk 0:00:04]} 51. Kg3 {[%clk 0:00:02]}  Qag1# {[%clk 0:00:04]} 0-1


[Site "https://www.chess.com"]

[Event "Titled Tuesday Blitz July 11 Late 2023"]
[White "Nefedov, Sergey"]
[Black "Womacka, Mathias"]
[WhiteFideId "24113417"]
[BlackFideId "4611390"]
[WhiteElo "2648"]
[BlackElo "2516"]
[Result "0-1"]
[Round "10"]
[TimeControl "180+2"]
[Date "2023.07.11"]
[WhiteClock "0:00:16"]
[BlackClock "0:00:13"]
[Board "47"]

1. d4 {[%clk 0:02:59]}  Nf6 {[%clk 0:02:58]} 2. Nf3 {[%clk 0:02:59]}  e6 {[%clk 0:02:59]} 3. Bf4 {[%clk 0:02:57]}  c5 {[%clk 0:02:58]} 4. e3 {[%clk 0:02:57]}  d5 {[%clk 0:02:57]} 5. c3 {[%clk 0:02:56]}  Bd6 {[%clk 0:02:58]} 6. Bg3 {[%clk 0:02:55]}  O-O {[%clk 0:02:57]} 7. Nbd2 {[%clk 0:02:55]}  Qc7 {[%clk 0:02:57]} 8. Bd3 {[%clk 0:02:54]}  Nbd7 {[%clk 0:02:56]} 9. O-O {[%clk 0:02:50]}  b6 {[%clk 0:02:54]} 10. e4 {[%clk 0:02:44]}  cxd4 {[%clk 0:02:38]} 11. Nxd4 {[%clk 0:02:30]}  Bxg3 {[%clk 0:02:36]} 12. hxg3 {[%clk 0:02:29]}  Nc5 {[%clk 0:02:23]} 13. Qe2 {[%clk 0:02:27]}  dxe4 {[%clk 0:02:09]} 14. Nxe4 {[%clk 0:02:26]}  Nfxe4 {[%clk 0:02:03]} 15. Bxe4 {[%clk 0:02:26]}  Ba6 {[%clk 0:02:03]} 16. c4 {[%clk 0:02:06]}  Nxe4 {[%clk 0:02:00]} 17. Qxe4 {[%clk 0:02:06]}  Qxc4 {[%clk 0:01:59]} 18. Rfc1 {[%clk 0:02:06]}  Qd3 {[%clk 0:01:53]} 19. Qxd3 {[%clk 0:02:05]}  Bxd3 {[%clk 0:01:54]} 20. Rc7 {[%clk 0:02:04]}  Rfc8 {[%clk 0:01:54]} 21. Rac1 {[%clk 0:02:04]}  Rxc7 {[%clk 0:01:31]} 22. Rxc7 {[%clk 0:02:05]}  Kf8 {[%clk 0:01:18]} 23. f3 {[%clk 0:01:59]}  Bb1 {[%clk 0:01:11]} 24. a3 {[%clk 0:01:52]}  g5 {[%clk 0:00:56]} 25. b4 {[%clk 0:01:50]}  Rd8 {[%clk 0:00:53]} 26. Nc6 {[%clk 0:01:47]}  Rd1+ {[%clk 0:00:52]} 27. Kh2 {[%clk 0:01:47]}  a5 {[%clk 0:00:47]} 28. bxa5 {[%clk 0:01:46]}  bxa5 {[%clk 0:00:47]} 29. Nxa5 {[%clk 0:01:46]}  Rd3 {[%clk 0:00:45]} 30. Nc4 {[%clk 0:01:07]}  Rc3 {[%clk 0:00:41]} 31. a4 {[%clk 0:01:07]}  Bd3 {[%clk 0:00:36]} 32. Rc8+ {[%clk 0:01:07]}  Ke7 {[%clk 0:00:33]} 33. Nb6 {[%clk 0:01:07]}  Rxc8 {[%clk 0:00:32]} 34. Nxc8+ {[%clk 0:01:08]}  Kd7 {[%clk 0:00:32]} 35. Nb6+ {[%clk 0:01:06]}  Kc6 {[%clk 0:00:32]} 36. a5 {[%clk 0:01:06]}  Kb5 {[%clk 0:00:31]} 37. Nd7 {[%clk 0:01:06]}  Kxa5 {[%clk 0:00:27]} 38. Ne5 {[%clk 0:01:06]}  Bg6 {[%clk 0:00:26]} 39. Kh3 {[%clk 0:01:01]}  f6 {[%clk 0:00:21]} 40. Nd7 {[%clk 0:00:54]}  f5 {[%clk 0:00:21]} 41. f4 {[%clk 0:00:53]}  h6 {[%clk 0:00:18]} 42. Nf8 {[%clk 0:00:51]}  Bf7 {[%clk 0:00:18]} 43. Nh7 {[%clk 0:00:49]}  g4+ {[%clk 0:00:17]} 44. Kh2 {[%clk 0:00:40]}  Kb6 {[%clk 0:00:18]} 45. Kg1 {[%clk 0:00:21]}  Kc6 {[%clk 0:00:17]} 46. Kf2 {[%clk 0:00:22]}  Kd6 {[%clk 0:00:17]} 47. Ke3 {[%clk 0:00:23]}  Ke7 {[%clk 0:00:14]} 48. Kd4 {[%clk 0:00:22]}  Bg6 {[%clk 0:00:14]} 49. Ng5 {[%clk 0:00:16]}  hxg5 {[%clk 0:00:13]} 50. fxg5 {[%clk 0:00:16]}  Kd6 {[%clk 0:00:13]} 0-1


[Site "https://www.chess.com"]

[Event "Titled Tuesday Blitz July 11 Late 2023"]
[White "Zhang, Derek"]
[Black "Schnaider, Ilan"]
[WhiteFideId "2087871"]
[BlackFideId "169013"]
[WhiteElo "2514"]
[BlackElo "2641"]
[Result "1-0"]
[Round "10"]
[TimeControl "180+2"]
[Date "2023.07.11"]
[WhiteClock "0:00:26"]
[BlackClock "0:00:05"]
[Board "49"]

1. Nf3 {[%clk 0:03:00]}  Nf6 {[%clk 0:02:59]} 2. c4 {[%clk 0:03:01]}  g6 {[%clk 0:02:59]} 3. Nc3 {[%clk 0:03:01]}  Bg7 {[%clk 0:03:00]} 4. e4 {[%clk 0:03:01]}  e5 {[%clk 0:03:00]} 5. d4 {[%clk 0:03:00]}  exd4 {[%clk 0:03:00]} 6. Nxd4 {[%clk 0:03:00]}  O-O {[%clk 0:03:00]} 7. Be3 {[%clk 0:02:57]}  Re8 {[%clk 0:03:00]} 8. Bd3 {[%clk 0:02:53]}  c6 {[%clk 0:02:58]} 9. O-O {[%clk 0:02:43]}  d5 {[%clk 0:02:58]} 10. cxd5 {[%clk 0:02:39]}  cxd5 {[%clk 0:02:59]} 11. Bb5 {[%clk 0:02:37]}  Re7 {[%clk 0:02:35]} 12. exd5 {[%clk 0:02:18]}  Nxd5 {[%clk 0:02:35]} 13. Bg5 {[%clk 0:02:18]}  Nxc3 {[%clk 0:01:58]} 14. Bxe7 {[%clk 0:02:08]}  Qxe7 {[%clk 0:01:58]} 15. bxc3 {[%clk 0:02:08]}  a6 {[%clk 0:01:58]} 16. Bc4 {[%clk 0:02:06]}  b5 {[%clk 0:01:58]} 17. Bd5 {[%clk 0:02:06]}  Ra7 {[%clk 0:01:56]} 18. Re1 {[%clk 0:02:04]}  Qd8 {[%clk 0:01:54]} 19. Qf3 {[%clk 0:01:53]}  b4 {[%clk 0:01:54]} 20. Rad1 {[%clk 0:01:47]}  bxc3 {[%clk 0:01:51]} 21. Nc6 {[%clk 0:01:46]}  Nxc6 {[%clk 0:01:46]} 22. Bxf7+ {[%clk 0:01:45]}  Rxf7 {[%clk 0:01:46]} 23. Rxd8+ {[%clk 0:01:37]}  Nxd8 {[%clk 0:01:46]} 24. Re8+ {[%clk 0:01:37]}  Bf8 {[%clk 0:01:46]} 25. Qxc3 {[%clk 0:01:35]}  Rd7 {[%clk 0:01:30]} 26. h4 {[%clk 0:01:18]}  Kf7 {[%clk 0:00:59]} 27. Rxf8+ {[%clk 0:01:15]}  Kxf8 {[%clk 0:00:59]} 28. Qxc8 {[%clk 0:01:15]}  Ke7 {[%clk 0:00:59]} 29. Qc5+ {[%clk 0:01:14]}  Kf7 {[%clk 0:00:54]} 30. Qc4+ {[%clk 0:01:14]}  Ne6 {[%clk 0:00:53]} 31. Qxa6 {[%clk 0:01:14]}  Rd1+ {[%clk 0:00:52]} 32. Kh2 {[%clk 0:01:13]}  Rd2 {[%clk 0:00:53]} 33. Kg3 {[%clk 0:01:07]}  Ng7 {[%clk 0:00:51]} 34. Qb7+ {[%clk 0:01:05]}  Kf6 {[%clk 0:00:49]} 35. Qb6+ {[%clk 0:01:05]}  Kf7 {[%clk 0:00:46]} 36. Qc7+ {[%clk 0:01:04]}  Kf8 {[%clk 0:00:46]} 37. Qf4+ {[%clk 0:01:04]}  Nf5+ {[%clk 0:00:45]} 38. Kh2 {[%clk 0:01:00]}  Rd4 {[%clk 0:00:43]} 39. Qb8+ {[%clk 0:00:58]}  Kf7 {[%clk 0:00:42]} 40. g3 {[%clk 0:00:58]}  Rd2 {[%clk 0:00:40]} 41. Kg2 {[%clk 0:00:57]}  Ne3+ {[%clk 0:00:38]} 42. Kf3 {[%clk 0:00:57]}  Nd1 {[%clk 0:00:37]} 43. Qb7+ {[%clk 0:00:53]}  Kg8 {[%clk 0:00:33]} 44. Qb3+ {[%clk 0:00:47]}  Kg7 {[%clk 0:00:31]} 45. Qb7+ {[%clk 0:00:41]}  Kh6 {[%clk 0:00:30]} 46. Qa7 {[%clk 0:00:41]}  Rd3+ {[%clk 0:00:20]} 47. Kg2 {[%clk 0:00:38]}  Rd2 {[%clk 0:00:15]} 48. a4 {[%clk 0:00:36]}  Ra2 {[%clk 0:00:13]} 49. a5 {[%clk 0:00:36]}  Ra3 {[%clk 0:00:08]} 50. a6 {[%clk 0:00:35]}  Nc3 {[%clk 0:00:07]} 51. Qe3+ {[%clk 0:00:33]}  Kg7 {[%clk 0:00:05]} 52. a7 {[%clk 0:00:33]}  Nb5 {[%clk 0:00:05]} 53. Qxa3 {[%clk 0:00:30]}  Nxa3 {[%clk 0:00:06]} 54. a8=Q {[%clk 0:00:30]}  Nc4 {[%clk 0:00:07]} 55. Qe4 {[%clk 0:00:27]}  Nd6 {[%clk 0:00:05]} 56. Qe5+ {[%clk 0:00:26]} 1-0


[Site "https://www.chess.com"]

[Event "Titled Tuesday Blitz July 11 Late 2023"]
[White "Zavgorodniy, Sergiy"]
[Black "JERO-8914"]
[WhiteFideId "14110148"]
[WhiteElo "2591"]
[BlackElo "2485"]
[Result "1/2-1/2"]
[Round "10"]
[TimeControl "180+2"]
[Date "2023.07.11"]
[WhiteClock "0:01:32"]
[BlackClock "0:01:43"]
[Board "54"]

1. d4 {[%clk 0:02:53]}  Nf6 {[%clk 0:02:59]} 2. c3 {[%clk 0:02:53]}  d5 {[%clk 0:02:58]} 3. Bf4 {[%clk 0:02:51]}  g6 {[%clk 0:02:54]} 4. Nf3 {[%clk 0:02:51]}  Bg7 {[%clk 0:02:54]} 5. e3 {[%clk 0:02:48]}  c5 {[%clk 0:02:54]} 6. Nbd2 {[%clk 0:02:48]}  Nc6 {[%clk 0:02:54]} 7. Bd3 {[%clk 0:02:45]}  O-O {[%clk 0:02:54]} 8. O-O {[%clk 0:02:44]}  Nd7 {[%clk 0:02:54]} 9. Qe2 {[%clk 0:02:38]}  e5 {[%clk 0:02:54]} 10. dxe5 {[%clk 0:02:39]}  c4 {[%clk 0:02:48]} 11. Bc2 {[%clk 0:02:38]}  Ndxe5 {[%clk 0:02:48]} 12. Nxe5 {[%clk 0:02:38]}  Nxe5 {[%clk 0:02:49]} 13. Bxe5 {[%clk 0:02:38]}  Bxe5 {[%clk 0:02:48]} 14. Nf3 {[%clk 0:02:37]}  Bg7 {[%clk 0:02:48]} 15. Rad1 {[%clk 0:02:37]}  Qb6 {[%clk 0:02:48]} 16. Bb1 {[%clk 0:02:31]}  Be6 {[%clk 0:02:47]} 17. Nd4 {[%clk 0:02:30]}  a5 {[%clk 0:02:45]} 18. Nxe6 {[%clk 0:02:26]}  Qxe6 {[%clk 0:02:40]} 19. Qf3 {[%clk 0:02:24]}  Rfd8 {[%clk 0:02:38]} 20. Rd2 {[%clk 0:02:22]}  Rd6 {[%clk 0:02:38]} 21. Rfd1 {[%clk 0:02:22]}  Rad8 {[%clk 0:02:39]} 22. g3 {[%clk 0:02:17]}  b5 {[%clk 0:02:39]} 23. Kg2 {[%clk 0:02:17]}  b4 {[%clk 0:02:39]} 24. e4 {[%clk 0:02:11]}  dxe4 {[%clk 0:02:34]} 25. Qe3 {[%clk 0:02:00]}  Rxd2 {[%clk 0:02:29]} 26. Rxd2 {[%clk 0:02:01]}  Rxd2 {[%clk 0:02:29]} 27. Qxd2 {[%clk 0:02:02]}  bxc3 {[%clk 0:02:30]} 28. bxc3 {[%clk 0:02:02]}  f5 {[%clk 0:02:20]} 29. Qd8+ {[%clk 0:01:59]}  Bf8 {[%clk 0:02:17]} 30. Qd4 {[%clk 0:01:59]}  Bd6 {[%clk 0:02:10]} 31. a4 {[%clk 0:01:58]}  Be5 {[%clk 0:02:10]} 32. Qd8+ {[%clk 0:01:57]}  Kg7 {[%clk 0:02:10]} 33. Ba2 {[%clk 0:01:55]}  Bxc3 {[%clk 0:02:09]} 34. Qc7+ {[%clk 0:01:55]}  Kh6 {[%clk 0:02:02]} 35. Bxc4 {[%clk 0:01:53]}  Qe5 {[%clk 0:01:59]} 36. Qxe5 {[%clk 0:01:37]}  Bxe5 {[%clk 0:01:59]} 37. h4 {[%clk 0:01:37]}  Bc3 {[%clk 0:01:59]} 38. Kf1 {[%clk 0:01:37]}  Kg7 {[%clk 0:01:57]} 39. Ke2 {[%clk 0:01:37]}  h6 {[%clk 0:01:57]} 40. f3 {[%clk 0:01:37]}  exf3+ {[%clk 0:01:55]} 41. Kxf3 {[%clk 0:01:38]}  Kf6 {[%clk 0:01:50]} 42. g4 {[%clk 0:01:32]}  fxg4+ {[%clk 0:01:49]} 43. Kxg4 {[%clk 0:01:33]}  h5+ {[%clk 0:01:50]} 44. Kh3 {[%clk 0:01:33]}  Be1 {[%clk 0:01:43]} 45. Bb5 {[%clk 0:01:32]} 1/2-1/2


[Site "https://www.chess.com"]

[Event "Titled Tuesday Blitz July 11 Late 2023"]
[White "Yurasova, Daria"]
[Black "Grinev, Valeriy"]
[WhiteFideId "34146919"]
[BlackFideId "14117517"]
[WhiteElo "2483"]
[BlackElo "2578"]
[Result "1-0"]
[Round "10"]
[TimeControl "180+2"]
[Date "2023.07.11"]
[WhiteClock "0:00:25"]
[BlackClock "0:00:12"]
[Board "55"]

1. d4 {[%clk 0:03:00]}  Nf6 {[%clk 0:02:58]} 2. Bg5 {[%clk 0:03:00]}  e6 {[%clk 0:02:59]} 3. e4 {[%clk 0:03:00]}  Be7 {[%clk 0:02:59]} 4. Nd2 {[%clk 0:03:00]}  d5 {[%clk 0:02:58]} 5. e5 {[%clk 0:02:58]}  Nfd7 {[%clk 0:02:59]} 6. Bxe7 {[%clk 0:02:59]}  Qxe7 {[%clk 0:02:59]} 7. Bd3 {[%clk 0:03:00]}  a6 {[%clk 0:02:59]} 8. Ne2 {[%clk 0:03:00]}  c5 {[%clk 0:02:59]} 9. c3 {[%clk 0:03:00]}  Nc6 {[%clk 0:02:59]} 10. O-O {[%clk 0:03:01]}  b5 {[%clk 0:03:00]} 11. f4 {[%clk 0:03:01]}  g6 {[%clk 0:02:59]} 12. Nf3 {[%clk 0:02:59]}  h5 {[%clk 0:02:58]} 13. a4 {[%clk 0:02:57]}  b4 {[%clk 0:02:57]} 14. Qd2 {[%clk 0:02:55]}  c4 {[%clk 0:02:55]} 15. Bc2 {[%clk 0:02:55]}  b3 {[%clk 0:02:56]} 16. Bb1 {[%clk 0:02:54]}  Na5 {[%clk 0:02:51]} 17. Ng5 {[%clk 0:02:47]}  Nb6 {[%clk 0:02:52]} 18. Qe3 {[%clk 0:02:44]}  Bd7 {[%clk 0:02:52]} 19. Nf3 {[%clk 0:02:18]}  O-O-O {[%clk 0:02:50]} 20. Nd2 {[%clk 0:02:18]}  Kb8 {[%clk 0:02:47]} 21. g3 {[%clk 0:02:18]}  Ka7 {[%clk 0:02:48]} 22. h3 {[%clk 0:02:14]}  Rdg8 {[%clk 0:02:46]} 23. Kf2 {[%clk 0:02:13]}  f5 {[%clk 0:02:38]} 24. exf6 {[%clk 0:02:13]}  Qxf6 {[%clk 0:02:39]} 25. Nf3 {[%clk 0:02:12]}  h4 {[%clk 0:02:37]} 26. g4 {[%clk 0:02:12]}  Nxa4 {[%clk 0:02:33]} 27. Ne5 {[%clk 0:02:09]}  Bb5 {[%clk 0:02:33]} 28. Ng1 {[%clk 0:01:44]}  Nb7 {[%clk 0:02:30]} 29. Ngf3 {[%clk 0:01:43]}  Nxb2 {[%clk 0:02:27]} 30. Ng5 {[%clk 0:01:38]}  Nd3+ {[%clk 0:02:21]} 31. Nxd3 {[%clk 0:01:35]}  cxd3 {[%clk 0:02:21]} 32. Bxd3 {[%clk 0:01:32]}  Bxd3 {[%clk 0:02:20]} 33. Qxd3 {[%clk 0:01:33]}  Qxf4+ {[%clk 0:02:18]} 34. Ke2 {[%clk 0:01:20]}  Qd6 {[%clk 0:01:55]} 35. Nf7 {[%clk 0:01:17]}  Qb6 {[%clk 0:01:47]} 36. Nxh8 {[%clk 0:01:16]}  Rxh8 {[%clk 0:01:46]} 37. Ra3 {[%clk 0:01:13]}  e5 {[%clk 0:01:41]} 38. Rfa1 {[%clk 0:01:07]}  a5 {[%clk 0:01:40]} 39. Rb1 {[%clk 0:01:07]}  b2 {[%clk 0:01:39]} 40. Ra2 {[%clk 0:01:07]}  exd4 {[%clk 0:01:39]} 41. Raxb2 {[%clk 0:01:06]}  Re8+ {[%clk 0:01:40]} 42. Kd1 {[%clk 0:01:03]}  Nc5 {[%clk 0:01:19]} 43. Qxd4 {[%clk 0:00:54]}  Qc6 {[%clk 0:00:48]} 44. Rb5 {[%clk 0:00:52]}  Ka6 {[%clk 0:00:31]} 45. Qxc5 {[%clk 0:00:45]}  Qxc5 {[%clk 0:00:31]} 46. Rxc5 {[%clk 0:00:46]}  Re3 {[%clk 0:00:31]} 47. Rxd5 {[%clk 0:00:38]}  Rxc3 {[%clk 0:00:31]} 48. Rd6+ {[%clk 0:00:37]}  Ka7 {[%clk 0:00:31]} 49. Rxg6 {[%clk 0:00:36]}  Rxh3 {[%clk 0:00:31]} 50. Rbb6 {[%clk 0:00:35]}  a4 {[%clk 0:00:29]} 51. Ra6+ {[%clk 0:00:35]}  Kb7 {[%clk 0:00:29]} 52. Rxa4 {[%clk 0:00:35]}  Rg3 {[%clk 0:00:28]} 53. Rb4+ {[%clk 0:00:35]}  Kc7 {[%clk 0:00:27]} 54. Rf4 {[%clk 0:00:36]}  Rd3+ {[%clk 0:00:22]} 55. Ke2 {[%clk 0:00:34]}  Rd7 {[%clk 0:00:22]} 56. Rc4+ {[%clk 0:00:30]}  Kb7 {[%clk 0:00:21]} 57. Rcc6 {[%clk 0:00:27]}  h3 {[%clk 0:00:20]} 58. Rcd6 {[%clk 0:00:24]}  Re7+ {[%clk 0:00:20]} 59. Kf2 {[%clk 0:00:22]}  Rc7 {[%clk 0:00:20]} 60. Rb6+ {[%clk 0:00:22]}  Ka7 {[%clk 0:00:20]} 61. Ra6+ {[%clk 0:00:22]}  Kb7 {[%clk 0:00:20]} 62. Rgb6+ {[%clk 0:00:22]}  Kc8 {[%clk 0:00:21]} 63. Rc6 {[%clk 0:00:23]}  h2 {[%clk 0:00:19]} 64. Kg2 {[%clk 0:00:23]}  Rxc6 {[%clk 0:00:18]} 65. Rxc6+ {[%clk 0:00:24]}  Kd7 {[%clk 0:00:19]} 66. Rf6 {[%clk 0:00:23]}  Ke7 {[%clk 0:00:19]} 67. Rf1 {[%clk 0:00:23]}  h1=Q+ {[%clk 0:00:17]} 68. Kxh1 {[%clk 0:00:24]}  Ke6 {[%clk 0:00:12]} 69. g5 {[%clk 0:00:25]} 1-0


[Site "https://www.chess.com"]

[Event "Titled Tuesday Blitz July 11 Late 2023"]
[White "Vlassov, Nikolai"]
[Black "Estrada Nieto, Julian"]
[WhiteFideId "4103360"]
[BlackFideId "5101018"]
[WhiteElo "2577"]
[BlackElo "2469"]
[Result "1-0"]
[Round "10"]
[TimeControl "180+2"]
[Date "2023.07.11"]
[WhiteClock "0:01:19"]
[BlackClock "0:00:55"]
[Board "56"]

1. e4 {[%clk 0:03:00]}  e5 {[%clk 0:02:59]} 2. Bc4 {[%clk 0:02:57]}  Nc6 {[%clk 0:03:00]} 3. f4 {[%clk 0:02:56]}  exf4 {[%clk 0:02:57]} 4. d4 {[%clk 0:02:56]}  Nf6 {[%clk 0:02:51]} 5. Nc3 {[%clk 0:02:56]}  Bb4 {[%clk 0:02:49]} 6. Ne2 {[%clk 0:02:41]}  Nxe4 {[%clk 0:02:43]} 7. O-O {[%clk 0:02:41]}  Bxc3 {[%clk 0:02:36]} 8. Nxc3 {[%clk 0:02:37]}  Nxc3 {[%clk 0:02:33]} 9. bxc3 {[%clk 0:02:37]}  O-O {[%clk 0:02:32]} 10. Bxf4 {[%clk 0:02:36]}  d5 {[%clk 0:02:32]} 11. Bd3 {[%clk 0:02:36]}  Be6 {[%clk 0:02:24]} 12. Qh5 {[%clk 0:02:35]}  g6 {[%clk 0:02:20]} 13. Qh6 {[%clk 0:02:35]}  Qf6 {[%clk 0:02:06]} 14. Be5 {[%clk 0:02:30]}  Nxe5 {[%clk 0:02:04]} 15. Rxf6 {[%clk 0:02:28]}  Ng4 {[%clk 0:02:04]} 16. Qg5 {[%clk 0:02:26]}  Nxf6 {[%clk 0:02:04]} 17. Qxf6 {[%clk 0:02:26]}  Rfe8 {[%clk 0:02:03]} 18. Rf1 {[%clk 0:02:24]}  Rad8 {[%clk 0:02:00]} 19. h4 {[%clk 0:02:23]}  Rd7 {[%clk 0:01:54]} 20. h5 {[%clk 0:02:23]}  gxh5 {[%clk 0:01:43]} 21. Qg5+ {[%clk 0:02:11]}  Kf8 {[%clk 0:01:41]} 22. Bxh7 {[%clk 0:02:09]}  Bg4 {[%clk 0:01:38]} 23. Qh6+ {[%clk 0:02:01]}  Ke7 {[%clk 0:01:37]} 24. Re1+ {[%clk 0:01:57]}  Kd8 {[%clk 0:01:34]} 25. Qg5+ {[%clk 0:01:52]}  Rde7 {[%clk 0:01:28]} 26. Rxe7 {[%clk 0:01:48]}  Rxe7 {[%clk 0:01:27]} 27. Qxd5+ {[%clk 0:01:48]}  Kc8 {[%clk 0:01:27]} 28. Bf5+ {[%clk 0:01:47]}  Bxf5 {[%clk 0:01:21]} 29. Qxf5+ {[%clk 0:01:47]}  Kd8 {[%clk 0:01:20]} 30. Qxh5 {[%clk 0:01:46]}  c6 {[%clk 0:01:13]} 31. Kf2 {[%clk 0:01:37]}  Kc7 {[%clk 0:01:12]} 32. Qh2+ {[%clk 0:01:35]}  Kb6 {[%clk 0:01:10]} 33. Qd6 {[%clk 0:01:32]}  Re6 {[%clk 0:01:06]} 34. Qd7 {[%clk 0:01:27]}  Rf6+ {[%clk 0:01:02]} 35. Ke3 {[%clk 0:01:27]}  Rf1 {[%clk 0:01:01]} 36. c4 {[%clk 0:01:22]}  Ka6 {[%clk 0:00:59]} 37. d5 {[%clk 0:01:19]}  cxd5 {[%clk 0:00:55]} 38. Qb5# {[%clk 0:01:19]} 1-0


[Site "https://www.chess.com"]